bitfinex-derivatives/quotes_ETHF0:USTF0_20250214
["timestamp","ask_amount","ask_price","bid_price","bid_amount"]
[1739521366579,41.53855,2707.6,2707.5,0.00553659]
[1739521368880,41.53855,2707.6,2707.5,0.74410659]
[1739521369480,41.53855,2707.6,2707.5,0.00553659]
[1739521371087,41.53855,2707.6,2707.5,0.74410659]
[1739521371386,41.53855,2707.6,2707.5,0.00553659]
[1739521371885,41.53855,2707.6,2707.5,0.74410659]
[1739521372185,41.53855,2707.6,2707.5,0.00553659]
[1739521372887,41.53855,2707.6,2707.5,0.74410659]
[1739521373083,41.53855,2707.6,2707.5,0.00553659]
[1739521373987,41.53855,2707.6,2707.5,0.55353659]
[1739521374980,41.53855,2707.6,2707.5,1.29210659]
[1739521375285,41.53855,2707.6,2707.5,0.55353659]
[1739521375486,41.53855,2707.6,2707.5,1.29210659]
[1739521375685,40.8,2707.6,2707.5,4.49990659]
[1739521376387,40.8,2707.6,2707.5,5.05249264]
[1739521377391,41.53855,2707.6,2707.5,5.05249264]
[1739521377887,40.8,2707.6,2707.5,5.05249264]
[1739521378282,41.53855,2707.6,2707.5,5.05249264]
[1739521380199,40.8,2707.6,2707.5,5.05249264]
[1739521380488,41.53855,2707.6,2707.5,4.49990659]
[1739521380692,40.8,2707.6,2707.5,4.49990659]
[1739521380988,40.8,2707.6,2707.5,5.07008147]
[1739521381183,41.53855,2707.6,2707.5,4.33151147]
[1739521381384,41.53855,2707.6,2707.5,4.33169077]
[1739521381583,41.53855,2707.6,2707.5,3.76676805]
[1739521382090,41.53855,2707.6,2707.5,0.55896805]
[1739521382486,41.53855,2707.6,2707.5,0.00553659]
[1739521382686,44.74635,2707.6,2707.5,0.00553659]
[1739521382896,41.53855,2707.6,2707.5,0.00553659]
[1739521383080,40.8,2707.6,2707.5,1.31441371]
[1739521383483,40.8,2707.6,2707.5,1.88221371]
[1739521383682,41.53855,2707.6,2707.5,2.43547492]
[1739521383885,40.8,2707.6,2707.5,2.43547492]
[1739521384295,41.53855,2707.6,2707.5,2.43547492]
[1739521385290,41.53855,2707.6,2707.5,1.69690492]
[1739521385493,41.53855,2707.6,2707.5,0.5587978]
[1739521387197,41.53855,2707.6,2707.5,0.00553659]
[1739521388394,41.54180084,2707.6,2707.5,0.00553659]
[1739521390497,3.2078,2707.4,2705.5,3.2078]
[1739521390696,3.2078,2706.2,2705.7,0.5416]
[1739521390895,0.739,2706.0,2705.7,1.28065]
[1739521391095,40.8,2705.8,2705.7,1.28065]
[1739521391394,40.8,2705.8,2705.7,0.5416]
[1739521391594,41.53904,2705.8,2705.7,0.5416]
[1739521391792,40.8,2705.8,2705.7,0.5416]
[1739521391997,40.8,2705.8,2705.7,1.09448871]
[1739521392392,41.53904,2705.8,2705.7,1.09448871]
[1739521392799,40.8,2705.8,2705.7,1.83354871]
[1739521392993,40.8,2705.8,2705.7,1.28066]
[1739521393298,41.53904,2705.8,2705.7,0.5416]
[1739521393700,41.53904,2705.8,2705.7,1.28066]
[1739521394000,41.53904,2705.8,2705.7,0.5416]
[1739521394296,40.8,2705.8,2705.5,0.00553659]
[1739521394499,0.73909,2705.6,2705.5,0.00553659]
[1739521394896,2.90247139,2706.0,2705.5,3.21333659]
[1739521395095,2.90247139,2706.0,2705.8,0.73903]
[1739521395096,0.74452659,2706.0,2705.8,0.73903]
[1739521395391,0.74452659,2706.0,2705.9,1.1356]
[1739521395601,0.74452659,2706.0,2705.9,0.34825678]
[1739521395793,41.54452659,2706.0,2705.9,0.34825678]
[1739521396701,44.75232659,2706.0,2705.9,0.34825678]
[1739521397204,47.64926139,2706.0,2705.9,0.34825678]
[1739521400691,46.91027139,2706.0,2705.7,0.59]
[1739521400896,0.73904,2705.8,2705.7,0.59]
[1739521401298,0.73909,2705.6,2705.5,0.55873659]
[1739521401803,0.73909,2705.6,2705.5,0.00553659]
[1739521402105,41.53909,2705.6,2705.5,0.00553659]
[1739521408904,40.8,2705.6,2704.4,3.2078]
[1739521409117,0.73923,2705.1,2705.0,0.5645]
[1739521409504,41.53923,2705.1,2705.0,0.5645]
[1739521410007,41.53923,2705.1,2705.0,1.30376]
[1739521410211,41.53923,2705.1,2705.0,0.5645]
[1739521410807,41.53923,2705.1,2705.0,1.30376]
[1739521411407,41.53923,2705.1,2705.0,0.5645]
[1739521411912,41.53923,2705.1,2705.0,1.85796]
[1739521413012,41.53923,2705.1,2705.0,1.1187]
[1739521413200,40.8,2705.1,2705.0,1.85796]
[1739521413405,2.8969348,2705.1,2704.9,0.73926]
[1739521413602,2.8969348,2705.1,2704.8,0.74482659]
[1739521413910,0.73926,2705.0,2704.9,0.73928]
[1739521414111,0.5639,2705.3,2704.9,1.1328]
[1739521414410,40.8,2705.0,2704.9,1.87208]
[1739521418116,41.53926,2705.0,2704.9,1.87208]
[1739521419710,40.8,2705.0,2704.9,1.87208]
[1739521425718,40.8,2705.0,2704.9,4.7690148]
[1739521426119,40.8,2705.0,2704.9,5.33939657]
[1739521426420,40.8,2705.0,2704.9,5.89289737]
[1739521426615,3.94685,2705.8,2705.7,0.73906]
[1739521427507,44.74685,2705.8,2705.7,0.73906]
[1739521427910,0.73906,2705.7,2705.6,1.29217]
[1739521428614,41.53906,2705.7,2705.6,1.29217]
[1739521429121,41.53906,2705.7,2705.6,0.5531]
[1739521429713,41.53906,2705.7,2705.6,1.29219]
[1739521430014,40.8,2705.7,2705.6,1.29219]
[1739521434026,41.53906,2705.7,2705.6,1.29219]
[1739521434420,40.8,2705.7,2705.6,1.29219]
[1739521442232,40.8,2705.7,2705.6,1.86191356]
[1739521442633,40.8,2705.7,2705.6,2.4146165]
[1739521443441,40.8,2705.7,2705.6,1.84489294]
[1739521443732,0.00553659,2706.0,2705.9,0.73901]
[1739521443930,0.00553659,2706.0,2705.9,6.8437448]
[1739521444334,0.00553659,2706.0,2705.9,7.39644774]
[1739521444535,0.00553659,2706.0,2705.9,7.96541184]
[1739521444835,40.80553659,2706.0,2705.9,7.39644774]
[1739521446135,40.80553659,2706.0,2705.9,6.8437448]
[1739521447234,40.80553659,2706.0,2705.9,12.8437448]
[1739521447734,40.80553659,2706.0,2705.9,13.39556618]
[1739521447936,40.80553659,2706.0,2705.9,7.39556618]
[1739521448739,40.80553659,2706.0,2705.9,13.39556618]
[1739521449037,40.80553659,2706.0,2705.9,9.09056618]
[1739521449936,40.80553659,2706.0,2705.9,9.65905092]
[1739521450843,40.80553659,2706.0,2705.9,15.65899923]
[1739521451135,3.2078,2706.7,2706.6,0.73882]
[1739521451333,0.73884,2706.6,2706.5,0.73882]
[1739521451634,0.73887,2706.5,2706.4,0.73885]
[1739521451836,3.2078,2706.7,2706.3,3.7962]
[1739521452032,40.8,2706.5,2706.4,0.73887]
[1739521452834,40.8,2706.5,2706.4,1.27757]
[1739521455641,41.53885,2706.5,2706.4,1.27757]
[1739521455842,40.8,2706.5,2706.4,1.27757]
[1739521456043,40.8,2706.5,2706.4,0.73887]
[1739521456243,41.53885,2706.5,2706.4,0.73887]
[1739521456945,41.53886,2706.5,2706.4,0.73887]
[1739521457142,40.8,2706.5,2706.4,0.73887]
[1739521458450,40.8,2706.5,2706.4,2.43587]
[1739521459143,40.8,2706.5,2706.4,2.98771803]
[1739521459943,40.8,2706.5,2706.4,2.43587]
[1739521462746,40.8,2706.5,2706.4,2.33328337]
[1739521462942,0.00553659,2706.7,2706.4,2.33328337]
[1739521462943,0.00553659,2706.7,2706.4,8.2488643]
[1739521463147,6.52,2710.8,2706.4,8.2488643]
[1739521463148,0.563,2707.4,2707.3,0.73863]
[1739521463348,0.2254,2707.5,2707.4,0.7386]
[1739521463645,3.2078,2707.6,2707.2,2.8969348]
[1739521463848,3.2078,2707.6,2707.5,0.73857]
[1739521464041,44.0078,2707.6,2707.5,0.73857]
[1739521464746,44.0078,2707.6,2707.5,0.73624246]
[1739521465452,44.0078,2707.6,2707.3,1.1148]
[1739521465646,44.0078,2707.6,2707.5,0.73857]
[1739521467845,40.8,2707.6,2707.5,0.73857]
[1739521468255,40.8,2707.6,2707.5,3.6355048]
[1739521489370,40.8,2707.6,2707.3,1.1148]
[1739521489571,0.7386,2707.5,2707.4,3.6355148]
[1739521489769,0.7386,2707.5,2707.4,0.73858]
[1739521489961,40.8,2707.5,2707.3,5.6787348]
[1739521490277,0.7386,2707.4,2707.3,6.4173448]
[1739521490572,41.5386,2707.5,2707.4,0.7386]
[1739521492264,41.5386,2707.5,2707.3,0.73862]
[1739521492265,0.73863,2707.4,2707.3,0.73862]
[1739521492463,3.2078,2707.5,2707.0,2.8969348]
[1739521492660,0.73871,2707.1,2707.0,0.7387]
[1739521492866,44.74649,2707.1,2707.0,0.73871]
[1739521493058,41.53869,2707.1,2707.0,0.73871]
[1739521493264,41.53869,2707.1,2706.8,0.73874]
[1739521493265,0.73875,2706.9,2706.8,0.73874]
[1739521493674,0.7839,2707.0,2706.9,0.73874]
[1739521493865,42.32261,2707.0,2706.9,0.73874]
[1739521494066,41.5839,2707.0,2706.9,0.73874]
[1739521494375,42.32261,2707.0,2706.9,0.73874]
[1739521494563,41.5839,2707.0,2706.9,0.73874]
[1739521494764,41.359,2707.0,2706.9,0.73874]
[1739521494979,40.8,2707.0,2706.9,3.94654]
[1739521495270,3.9953,2707.7,2706.9,3.77758607]
[1739521495575,4.73382,2707.7,2707.6,0.73855]
[1739521496275,45.53382,2707.7,2707.6,0.73855]
[1739521497067,45.30892,2707.7,2707.6,0.73855]
[1739521497471,44.5704,2707.7,2707.4,1.27768]
[1739521497670,44.5704,2707.7,2707.3,0.5537]
[1739521497870,0.73857,2707.6,2707.5,0.73855]
[1739521498374,3.7704,2707.7,2707.3,0.5537]
[1739521498570,0.73863,2707.3,2707.2,4.1924648]
[1739521498876,41.53863,2707.3,2707.2,3.6355648]
[1739521499381,0.73868,2707.1,2707.0,0.73869]
[1739521499578,2.63444,2707.2,2706.8,0.5569]
[1739521499876,0.7878,2707.2,2706.6,3.4593348]
[1739521500375,3.2078,2707.1,2706.4,19.347]
[1739521500573,41.53886,2706.5,2706.4,0.73887]
[1739521500766,40.8,2706.5,2706.4,0.73887]
[1739521503078,40.8,2706.5,2706.4,2.96206748]
[1739521505074,0.7878,2707.2,2706.4,2.22319748]
[1739521505278,0.7878,2707.2,2707.1,0.73868]
[1739521505781,3.2078,2707.4,2706.9,4.9392]
[1739521505986,0.5632,2707.6,2707.1,2.8969348]
[1739521506379,0.73861,2707.4,2707.2,0.73865]
[1739521506576,40.8,2707.3,2707.1,2.8969348]
[1739521506771,40.8,2707.3,2707.2,0.73865]
[1739521511583,40.8,2707.3,2707.2,3.94645]
[1739521512887,40.8,2707.3,2707.2,4.51506992]
[1739521513380,40.8,2707.3,2707.2,5.06672616]
[1739521513586,0.00553659,2707.8,2707.7,0.73852]
[1739521513900,0.00553659,2707.8,2707.7,6.8432548]
[1739521514580,40.80553659,2707.8,2707.7,6.8432548]
[1739521522894,40.80553659,2707.8,2707.7,6.73781271]
[1739521523586,0.5599,2708.6,2708.5,0.7383]
[1739521524499,41.3599,2708.6,2708.5,0.7383]
[1739521524682,40.8,2708.6,2708.5,0.7383]
[1739521525488,40.8,2708.6,2708.4,2.8969348]
[1739521525793,0.7383,2708.5,2708.4,3.6352648]
[1739521525990,40.8,2708.6,2708.4,2.8969348]
[1739521526192,0.7383,2708.5,2708.4,3.6352548]
[1739521526902,41.5383,2708.5,2708.4,3.6352548]
[1739521527301,41.5383,2708.5,2708.2,1.7044]
[1739521527302,40.8,2708.5,2708.2,0.73837]
[1739521527607,40.8,2708.5,2708.1,2.8969348]
[1739521527796,41.53833,2708.5,2708.4,0.73833]
[1739521528693,0.73838,2708.3,2708.2,0.73836]
[1739521529388,41.53838,2708.3,2708.2,0.73836]
[1739521529599,40.8,2708.3,2708.2,0.73836]
[1739521530304,41.53835,2708.3,2708.2,0.73836]
[1739521530895,40.8,2708.3,2708.2,0.73836]
[1739521531200,40.8,2708.3,2708.1,2.8969348]
[1739521531399,45.85371,2708.3,2707.9,3.3985]
[1739521531604,0.73844,2708.1,2708.0,0.73842]
[1739521532014,0.73843,2708.1,2708.0,0.7384]
[1739521532198,40.8,2708.1,2707.9,0.5762]
[1739521532405,40.8,2708.1,2708.0,0.73844]
[1739521533095,40.8,2708.1,2708.0,3.94624]
[1739521533300,40.8,2708.1,2708.0,4.51164]
[1739521535001,3.2078,2708.6,2708.0,9.7732]
[1739521535200,0.00553659,2708.8,2708.7,0.73825]
[1739521535496,0.00553659,2708.8,2708.5,4.7426848]
[1739521535497,0.74376659,2708.8,2708.6,1.7344]
[1739521535901,0.74376659,2708.8,2708.6,2.47266]
[1739521536101,41.53825,2708.7,2708.6,1.7344]
[1739521536298,40.8,2708.7,2708.5,2.8969348]
[1739521536505,40.8,2708.7,2708.3,3.2078]
[1739521536903,0.7383,2708.5,2708.4,0.73832]
[1739521537103,40.8,2708.7,2708.3,3.2078]
[1739521537305,41.53826,2708.7,2708.6,0.73827]
[1739521537698,40.8,2708.7,2708.6,0.73827]
[1739521538806,40.8,2708.7,2708.6,4.52267]
[1739521539601,40.8,2708.7,2708.6,6.17867]
[1739521540103,0.00553659,2708.8,2708.7,0.73825]
[1739521540307,0.00553659,2708.8,2708.7,1.89605]
[1739521541210,40.80553659,2708.8,2708.7,1.89605]
[1739521543007,3.2078,2709.6,2709.2,0.7381]
[1739521543201,3.4321,2709.6,2709.1,2.8969348]
[1739521543510,0.73803,2709.5,2709.4,0.73804]
[1739521543711,0.73805,2709.5,2709.3,0.73807]
[1739521543911,40.8,2709.4,2709.3,0.73807]
[1739521544107,41.53806,2709.4,2709.2,1.1458]
[1739521544302,40.8,2709.4,2709.2,1.1458]
[1739521544503,40.8,2709.4,2709.3,0.73808]
[1739521545307,40.8,2709.4,2709.1,2.90247139]
[1739521545507,0.73811,2709.2,2709.1,2.90247139]
[1739521545706,0.73811,2709.2,2709.1,0.00553659]
[1739521546211,41.76241,2709.2,2709.1,0.00553659]
[1739521547716,41.76241,2709.2,2709.1,0.74367659]
[1739521548016,41.76241,2709.2,2709.1,0.00553659]
[1739521550008,47.0243,2709.2,2708.5,2.8969348]
[1739521550211,3.2078,2708.8,2708.2,22.8131348]
[1739521550414,0.73831,2708.5,2708.4,0.7383]
[1739521550909,0.7859,2708.7,2708.2,3.4761348]
[1739521551218,1.52968659,2708.7,2708.6,0.73827]
[1739521551512,0.7383,2708.5,2708.4,0.7383]
[1739521551716,41.5383,2708.5,2708.4,0.7383]
[1739521552108,40.8,2708.5,2708.2,3.48167139]
[1739521552311,40.8,2708.5,2708.4,0.73833]
[1739521552708,40.8,2708.5,2708.4,1.29173]
[1739521555817,0.00553659,2708.7,2708.6,0.73827]
[1739521556020,0.00553659,2708.7,2708.6,6.19801549]
[1739521556809,40.80553659,2708.7,2708.6,6.74879879]
[1739521558520,3.9749,2709.7,2709.6,0.738]
[1739521558715,3.94579,2709.7,2709.3,2.25194549]
[1739521558922,3.94579,2709.7,2709.5,0.73801]
[1739521559214,3.2078,2709.7,2709.3,2.83214549]
[1739521559419,3.2078,2709.7,2709.4,0.73804]
[1739521559619,41.53805,2709.5,2709.4,0.73806]
[1739521560010,40.8,2709.5,2709.4,0.73806]
[1739521560815,41.53804,2709.5,2709.3,3.57020549]
[1739521561019,0.73806,2709.4,2709.3,3.57021549]
[1739521561415,0.73806,2709.4,2709.3,0.5802]
[1739521561622,0.73806,2709.4,2709.1,4.3948]
[1739521561623,0.73811,2709.2,2709.1,1.33182]
[1739521561821,3.2078,2709.4,2709.3,0.73808]
[1739521562121,0.5618,2709.5,2709.4,0.73806]
[1739521562319,0.73808,2709.4,2709.3,0.73806]
[1739521563118,40.8,2709.4,2709.3,0.73808]
[1739521563423,41.53806,2709.4,2709.3,0.73808]
[1739521563722,40.8,2709.4,2709.1,0.5937]
[1739521563919,41.53808,2709.4,2709.3,0.73808]
[1739521564815,40.8,2709.4,2709.3,0.73808]
[1739521565221,41.53806,2709.4,2709.3,0.73808]
[1739521566823,40.8,2709.4,2709.3,0.73808]
[1739521567028,41.53806,2709.4,2709.3,0.73808]
[1739521567521,0.73811,2709.3,2709.2,0.7381]
[1739521568722,41.53811,2709.3,2709.2,0.7381]
[1739521570422,0.73811,2709.2,2709.1,1.33181]
[1739521571223,41.53811,2709.2,2709.1,1.33181]
[1739521571427,40.8,2709.2,2709.1,1.33181]
[1739521573621,40.8,2709.2,2709.1,4.53961]
[1739521574523,3.4317,2710.0,2709.1,3.8015]
[1739521574825,3.2078,2710.0,2709.9,0.73792]
[1739521575427,3.2078,2710.3,2709.9,0.73792]
[1739521575628,3.2078,2710.3,2710.2,0.73784]
[1739521576029,3.2078,2710.6,2710.5,0.73776]
[1739521576230,3.2078,2710.6,2710.5,2.25194549]
[1739521576527,3.94553,2710.6,2710.5,2.98970549]
[1739521577037,3.2078,2710.6,2710.5,2.98970549]
[1739521577231,3.2078,2710.9,2710.5,2.25194549]
[1739521577423,3.2078,2710.9,2710.8,0.73767]
[1739521577626,3.2078,2712.3,2710.8,10.29374549]
[1739521577823,3.698,2713.5,2710.8,10.29374549]
[1739521577824,3.2078,2712.8,2712.1,2.25194549]
[1739521578024,3.2078,2712.8,2712.2,3.2078]
[1739521578223,3.2078,2713.2,2712.4,2.25194549]
[1739521578527,3.2078,2713.2,2712.5,3.2078]
[1739521578827,3.2078,2713.2,2711.8,1.1089]
[1739521578828,40.8,2712.6,2712.2,3.2078]
[1739521579327,40.8,2712.6,2711.8,6.56864549]
[1739521579517,3.2078,2712.5,2711.8,6.00594549]
[1739521579720,5.45974549,2712.5,2711.8,3.2078]
[1739521579921,0.73739,2711.9,2711.5,2.25194549]
[1739521580122,3.2078,2712.1,2711.5,2.25194549]
[1739521580330,3.2078,2712.1,2711.4,3.2078]
[1739521580331,0.73743,2711.8,2711.4,3.2078]
[1739521580524,40.8,2711.5,2711.4,3.94531]
[1739521580727,40.8,2711.5,2711.4,5.45974549]
[1739521581026,40.8,2711.5,2711.4,6.19725549]
[1739521581621,40.8,2711.5,2711.4,6.76032351]
[1739521582636,40.8,2711.5,2711.4,6.02281351]
[1739521583236,40.8,2711.5,2711.3,0.00553659]
[1739521583432,1.29791,2711.4,2711.3,0.00553659]
[1739521584032,40.8,2711.4,2711.3,0.00553659]
[1739521584330,40.8,2711.4,2711.3,0.74307659]
[1739521587630,40.8,2711.4,2711.3,2.40807659]
[1739521589930,2.2224,2712.4,2711.3,8.40807659]
[1739521590131,1.29766,2712.4,2712.0,3.2078]
[1739521590326,0.5604,2712.4,2712.0,3.94512]
[1739521590534,0.73728,2712.3,2712.0,3.94512]
[1739521590733,0.5604,2712.4,2712.0,3.2078]
[1739521591339,2.39914,2712.8,2712.5,0.7372]
[1739521591537,40.8,2712.6,2712.5,0.7372]
[1739521591838,40.8,2712.6,2712.3,3.2078]
[1739521592044,40.8,2712.6,2712.5,0.73721]
[1739521592535,40.8,2712.6,2712.4,2.81501351]
[1739521592737,40.8,2712.6,2712.5,0.73721]
[1739521593342,40.8,2712.6,2712.4,2.81501351]
[1739521593533,41.5372,2712.6,2712.4,3.55224351]
[1739521593934,40.8,2712.6,2712.4,2.81501351]
[1739521594241,40.8,2712.6,2712.5,0.73721]
[1739521595738,40.8,2712.6,2712.5,1.32661]
[1739521596133,40.8,2712.6,2712.5,1.87641]
[1739521596436,40.8,2712.6,2712.5,3.53741]
[1739521597042,40.8,2712.6,2712.5,1.87641]
[1739521597635,0.5573,2713.5,2713.2,0.737]
[1739521597835,0.2223,2713.8,2713.3,2.81501351]
[1739521598031,0.73687,2713.8,2713.6,0.73689]
[1739521598238,3.2078,2713.9,2713.4,0.5884]
[1739521598442,0.73694,2713.5,2713.4,0.5884]
[1739521598629,41.53694,2713.5,2713.4,0.5884]
[1739521598830,40.8,2713.5,2713.4,1.32537]
[1739521599429,40.8,2713.5,2713.4,1.88807]
[1739521600343,40.8,2713.5,2713.4,3.55707]
[1739521601335,40.8,2713.5,2713.4,1.1511]
[1739521601536,40.8,2713.5,2713.4,2.8221]
[1739521601844,40.8,2713.5,2713.4,1.1511]
[1739521602044,40.8,2713.5,2713.4,1.88807]
[1739521604148,40.8,2713.5,2713.4,1.1511]
[1739521604449,40.8,2713.5,2713.4,1.88807]
[1739521605140,40.8,2713.5,2713.4,4.69919633]
[1739521606345,40.8,2713.5,2713.4,4.69891223]
[1739521607147,40.8,2713.5,2713.4,4.13621223]
[1739521608043,40.8,2713.5,2713.4,3.39924223]
[1739521608244,40.8,2713.5,2713.4,4.13621223]
[1739521609743,40.8,2713.5,2713.4,3.56849675]
[1739521610044,0.2218,2714.5,2713.5,1.84236]
[1739521610239,0.2218,2714.5,2714.4,0.7367]
[1739521610435,0.5507,2714.6,2714.5,0.73667]
[1739521610743,3.94442,2714.7,2714.5,2.24312675]
[1739521610943,40.8,2714.6,2714.5,2.97977675]
[1739521611749,40.8,2714.6,2714.5,0.73665]
[1739521613037,40.8,2714.6,2714.5,1.28265]
[1739521613241,0.559,2715.7,2714.8,1.84143]
[1739521613539,0.559,2715.7,2715.3,6.01702403]
[1739521614136,0.559,2715.7,2715.4,0.73641]
[1739521614342,40.8,2715.5,2715.3,6.01702403]
[1739521614553,40.8,2715.5,2715.4,0.73642]
[1739521614749,41.53641,2715.5,2715.3,6.01702403]
[1739521614951,40.8,2715.5,2715.3,6.01702403]
[1739521615251,40.8,2715.5,2715.0,6.02255001]
[1739521615448,0.559,2715.4,2715.0,3.21332598]
[1739521615651,0.73651,2715.1,2715.0,0.00552598]
[1739521615945,3.94431,2715.1,2715.0,0.00552598]
[1739521616347,3.94431,2715.1,2714.4,6.01702403]
[1739521616348,50.0078,2715.1,2714.4,3.2078]
[1739521616653,0.73675,2714.2,2714.1,2.80922403]
[1739521616944,1.84167,2714.6,2713.9,22.5098]
[1739521616945,1.84161,2714.6,2713.9,22.5098]
[1739521617160,3.2078,2714.5,2713.9,22.5098]
[1739521617348,41.5368,2714.0,2713.9,3.2078]
[1739521617652,40.8,2714.0,2713.9,3.95015598]
[1739521618653,41.5368,2714.0,2713.9,0.00552598]
[1739521620249,40.8,2714.0,2713.5,2.80922403]
[1739521620451,40.8,2714.0,2713.3,3.2078]
[1739521620651,0.2216,2713.9,2713.3,3.2078]
[1739521620847,3.2078,2713.8,2713.3,3.2078]
[1739521621052,0.2216,2713.9,2713.3,3.20175883]
[1739521621248,43.21182,2714.0,2713.7,0.73688]
[1739521621457,42.475,2714.0,2713.6,3.2078]
[1739521621955,42.475,2714.0,2713.3,0.00552598]
[1739521622255,0.73697,2713.4,2713.3,0.00552598]
[1739521622758,41.53697,2713.4,2713.3,0.00552598]
[1739521623451,40.8,2713.4,2713.3,0.00552598]
[1739521623843,40.8,2713.4,2713.3,0.74251598]
[1739521625558,40.8,2713.4,2713.3,0.00552598]
[1739521625754,41.53697,2713.4,2713.3,0.00552598]
[1739521626155,41.53697,2713.4,2713.3,0.74251598]
[1739521626651,41.53697,2713.4,2713.3,0.00552598]
[1739521627557,44.74477,2713.4,2713.3,0.00552598]
[1739521627768,50.0078,2713.4,2712.8,3.2078]
[1739521627950,0.7371,2712.9,2712.8,3.2078]
[1739521628157,0.5484,2713.3,2712.6,2.80922403]
[1739521628361,0.5484,2713.3,2712.7,0.73714]
[1739521628560,2.39093,2713.3,2712.6,3.54639403]
[1739521628762,0.5484,2713.3,2712.6,2.80922403]
[1739521628962,40.8,2712.7,2712.6,3.54640403]
[1739521629358,3.2078,2713.4,2712.6,3.54640403]
[1739521629359,4.8848,2714.0,2712.6,9.37283349]
[1739521629663,0.73688,2713.8,2713.7,0.73687]
[1739521629860,3.978,2714.3,2713.5,2.80922403]
[1739521630064,0.73676,2714.2,2714.1,0.73676]
[1739521630260,41.53676,2714.2,2714.1,0.73676]
[1739521630460,40.8,2714.2,2714.1,0.73676]
[1739521630662,40.8,2714.2,2713.9,3.2078]
[1739521630860,41.53675,2714.2,2714.1,0.73678]
[1739521631366,0.73678,2714.1,2714.0,0.73678]
[1739521631557,40.8,2714.2,2713.9,3.21332598]
[1739521631754,41.53676,2714.2,2714.1,0.73678]
[1739521631961,40.8,2714.2,2714.1,3.54600403]
[1739521632566,0.00552598,2714.4,2714.1,2.80922403]
[1739521632760,0.00552598,2714.4,2714.3,3.94452]
[1739521633162,3.2078,2715.3,2714.9,0.73654]
[1739521633377,3.2078,2716.3,2715.0,6.01702403]
[1739521633564,0.7363,2715.9,2715.6,3.94416]
[1739521633764,0.7363,2715.9,2715.6,3.2078]
[1739521634064,41.53634,2715.7,2715.6,3.2078]
[1739521634260,44.0078,2715.7,2715.2,3.2078]
[1739521634465,44.0078,2715.7,2715.5,0.00552598]
[1739521634466,0.73637,2715.6,2715.5,0.00552598]
[1739521635771,6.73637,2715.6,2715.5,0.00552598]
[1739521636166,6.73637,2715.6,2714.4,6.01702403]
[1739521636167,6.5536,2715.6,2714.4,6.01702403]
[1739521636372,3.2078,2715.4,2714.4,6.01702403]
[1739521636576,3.2078,2715.1,2714.4,6.01702403]
[1739521636876,0.73656,2715.0,2714.4,6.01702403]
[1739521637077,3.2078,2715.5,2714.7,3.2078]
[1739521637280,0.73652,2715.1,2714.8,0.73658]
[1739521637484,1.683,2715.2,2714.8,0.73657]
[1739521637775,0.73657,2714.9,2714.7,3.2078]
[1739521638076,1.683,2715.2,2714.7,3.2078]
[1739521638283,0.73655,2715.0,2714.7,3.9444]
[1739521638478,1.683,2715.2,2714.7,3.9444]
[1739521638686,1.683,2715.2,2714.7,3.2078]
[1739521638879,40.8,2714.8,2714.7,3.2078]
[1739521639386,40.8,2714.8,2714.7,3.94441]
[1739521640969,40.8,2714.8,2714.7,6.75363403]
[1739521642382,40.8,2714.8,2714.7,8.43863403]
[1739521642980,40.8,2714.8,2714.7,4.8928]
[1739521643176,40.8,2714.8,2714.7,5.62941]
[1739521643380,40.8,2714.8,2714.7,3.94441]
[1739521644485,40.8,2714.8,2714.7,3.2078]
[1739521644685,41.53659,2714.8,2714.7,3.2078]
[1739521645087,41.53659,2714.8,2714.7,3.94441]
[1739521645283,40.8,2714.8,2714.7,3.94441]
[1739521645783,40.8,2714.8,2714.7,6.75363403]
[1739521647282,0.73637,2715.6,2714.7,17.38402403]
[1739521647585,3.2078,2715.8,2715.2,6.01702403]
[1739521647791,0.73638,2715.6,2715.5,0.73638]
[1739521648180,0.73636,2715.7,2715.2,6.01702403]
[1739521648488,0.73639,2715.6,2715.2,6.01702403]
[1739521648687,3.2078,2715.8,2715.3,0.73645]
[1739521648881,3.2078,2715.8,2715.2,6.01702403]
[1739521649085,0.73641,2715.5,2715.3,0.73643]
[1739521649278,40.8,2715.4,2715.3,0.73643]
[1739521649790,40.8,2715.4,2715.3,2.41943]
[1739521652993,40.8,2715.4,2715.2,3.2078]
[1739521653189,41.53642,2715.4,2715.2,3.2078]
[1739521653390,40.8,2715.4,2715.2,3.2078]
[1739521653693,40.8,2715.4,2715.3,0.73645]
[1739521653995,40.8,2715.4,2715.2,3.2078]
[1739521654290,0.73645,2715.3,2715.2,3.2078]
[1739521654995,40.8,2715.3,2714.8,4.3624]
[1739521655389,40.8,2715.3,2715.2,0.73648]
[1739521656594,40.8,2715.3,2715.2,3.54570403]
[1739521656793,40.8,2715.3,2715.2,4.12360403]
[1739521659190,40.8,2715.3,2715.2,3.54570403]
[1739521662794,0.00549063,2716.0,2715.9,0.73629]
[1739521663394,0.00549063,2716.0,2715.7,3.2078]
[1739521663693,0.73637,2715.6,2715.5,0.73638]
[1739521663899,0.7364,2715.5,2715.4,3.2078]
[1739521664095,0.73639,2715.6,2715.5,0.73639]
[1739521664290,1.84073,2715.9,2715.4,3.2078]
[1739521664494,0.73638,2715.6,2715.5,0.73637]
[1739521664694,0.73637,2715.7,2715.6,0.73636]
[1739521664998,41.53637,2715.7,2715.6,0.73636]
[1739521665200,40.8,2715.7,2715.6,0.73636]
[1739521667205,41.53634,2715.7,2715.6,0.73636]
[1739521667695,40.8,2715.7,2715.6,0.73636]
[1739521667900,40.8,2715.7,2715.4,3.94421]